bitfinex-derivatives/quotes_ETHF0:USTF0_20250217
["timestamp","ask_amount","ask_price","bid_price","bid_amount"]
[1739773134503,1.30463,2676.1,2675.7,1.88661]
[1739773135206,1.30463,2676.1,2675.8,0.74739]
[1739773135408,0.5573,2676.1,2675.7,1.1392]
[1739773135609,0.5573,2676.1,2675.8,0.74738]
[1739773135814,0.5573,2676.1,2675.7,1.1392]
[1739773136002,3.24088775,2676.2,2675.9,0.74736]
[1739773136210,3.24088775,2676.2,2675.8,0.7474]
[1739773136513,3.24088775,2676.2,2675.9,0.74737]
[1739773136811,2.49359775,2676.2,2675.7,1.1392]
[1739773137017,3.24089775,2676.2,2675.9,0.74736]
[1739773137204,2.49359775,2676.2,2675.7,1.1392]
[1739773137410,2.49359775,2676.2,2675.9,0.74736]
[1739773137910,2.49359775,2676.2,2675.7,1.1392]
[1739773138118,2.49359775,2676.2,2676.0,0.74733]
[1739773138414,2.49359775,2676.2,2675.7,1.1392]
[1739773138916,2.49359775,2676.2,2675.9,0.74735]
[1739773139616,2.49359775,2676.2,2676.0,0.74734]
[1739773139822,0.74733,2676.1,2675.8,0.74739]
[1739773140120,3.24089775,2676.2,2675.9,0.74736]
[1739773140319,2.49359775,2676.2,2675.7,1.1392]
[1739773140516,0.74733,2676.1,2675.8,0.74739]
[1739773141317,0.74733,2676.1,2675.8,0.7474]
[1739773141514,2.49359775,2676.2,2675.9,0.74737]
[1739773141715,0.74732,2676.1,2675.7,1.1392]
[1739773142022,2.49359775,2676.2,2675.7,1.1392]
[1739773142221,0.00559775,2676.2,2676.1,0.74732]
[1739773145017,0.00559775,2676.2,2676.0,0.5958]
[1739773145420,0.00559775,2676.2,2676.1,0.74732]
[1739773146820,0.00559775,2676.2,2676.1,8.53056338]
[1739773148721,43.288,2676.9,2676.8,0.7471]
[1739773149114,0.5951,2677.1,2676.7,3.2078]
[1739773149315,0.5951,2677.1,2677.0,0.74707]
[1739773149922,0.00559775,2677.3,2677.2,0.74701]
[1739773152121,0.00559775,2677.3,2677.2,3.95481]
[1739773152322,0.00559775,2677.3,2677.2,15.24153784]
[1739773152922,2.487,2678.0,2677.3,1.8674]
[1739773153128,2.487,2678.0,2677.9,0.74681]
[1739773153715,2.487,2678.0,2677.7,0.74685]
[1739773153716,3.2338,2678.0,2677.7,0.74685]
[1739773153918,0.74682,2677.9,2677.6,3.9547]
[1739773154621,2.487,2678.0,2677.6,3.2078]
[1739773154817,3.2338,2678.0,2677.7,0.74685]
[1739773155012,2.487,2678.0,2677.6,3.2078]
[1739773155218,2.487,2678.0,2677.9,0.74681]
[1739773155623,2.487,2678.0,2677.7,0.74687]
[1739773155823,2.487,2678.0,2677.8,0.74683]
[1739773156014,2.487,2678.0,2677.9,0.74681]
[1739773156421,0.00559775,2678.1,2678.0,0.74679]
[1739773156716,3.2078,2678.5,2678.4,0.74667]
[1739773157126,3.0752,2678.8,2678.6,0.74659]
[1739773157421,3.0752,2678.8,2678.7,0.74659]
[1739773158222,0.5952,2678.9,2678.6,3.2078]
[1739773158424,0.00559775,2679.0,2678.9,0.74654]
[1739773161331,0.00559775,2679.0,2678.9,8.46021962]
[1739773163126,0.00559775,2679.0,2678.9,14.46021962]
[1739773163329,0.5592,2679.6,2678.9,13.71367962]
[1739773163633,0.5592,2679.6,2679.3,0.74641]
[1739773163833,0.5592,2679.6,2679.4,0.74639]
[1739773164130,0.5592,2679.6,2679.3,0.74641]
[1739773164924,0.5592,2679.6,2679.4,0.74639]
[1739773166325,0.5592,2679.6,2679.5,0.74637]
[1739773167225,0.5592,2679.6,2679.2,0.5745]
[1739773167226,0.5592,2679.6,2679.4,0.74638]
[1739773167831,0.5592,2679.6,2679.2,0.5745]
[1739773168233,0.5592,2679.6,2679.1,3.2078]
[1739773168436,0.74639,2679.5,2679.1,3.2078]
[1739773168732,1.30554,2679.6,2679.2,0.74644]
[1739773169527,0.5592,2679.6,2679.2,0.74644]
[1739773169729,1.30556,2679.6,2679.2,0.74645]
[1739773171046,1.30556,2679.6,2679.1,3.2078]
[1739773171047,0.74638,2679.5,2679.1,3.2078]
[1739773171536,1.30556,2679.6,2679.2,0.74644]
[1739773171838,0.5592,2679.6,2679.1,3.2078]
[1739773172338,3.27895773,2679.5,2679.1,3.2078]
[1739773172736,0.74645,2679.3,2679.1,3.2078]
[1739773173142,1.32025,2679.2,2679.1,3.2078]
[1739773173932,3.85275773,2679.2,2678.6,0.5784]
[1739773174236,0.74652,2679.0,2678.6,0.7466]
[1739773174448,0.5604,2678.9,2678.6,0.7466]
[1739773175039,0.5604,2678.9,2678.6,0.74662]
[1739773175232,0.5604,2678.9,2678.5,0.00559775]
[1739773175435,0.5604,2678.9,2678.8,0.74656]
[1739773176332,1.30694,2678.9,2678.6,3.95441]
[1739773176834,0.5604,2678.9,2678.7,0.74658]
[1739773177042,0.5604,2678.9,2678.6,3.9544]
[1739773177235,0.5604,2678.9,2678.6,3.2078]
[1739773177540,0.5604,2678.9,2678.7,0.74657]
[1739773178541,2.485,2679.3,2678.6,3.2078]
[1739773178732,2.485,2679.3,2678.9,3.2078]
[1739773178936,2.485,2679.3,2679.0,0.7465]
[1739773179241,2.485,2679.3,2678.9,3.2078]
[1739773179434,2.485,2679.3,2679.2,0.74645]
[1739773179836,3.2078,2679.4,2679.2,0.74645]
[1739773180036,3.2078,2679.4,2678.9,3.2078]
[1739773180230,0.74643,2679.3,2679.1,0.74647]
[1739773180431,3.2078,2679.4,2679.1,0.74646]
[1739773180630,0.74643,2679.3,2679.1,0.74646]
[1739773180843,3.95421,2679.4,2679.1,0.74646]
[1739773181044,3.2078,2679.4,2679.1,0.74646]
[1739773181235,3.9542,2679.4,2679.1,0.74646]
[1739773181435,3.95422,2679.4,2679.1,0.74646]
[1739773181636,6.31895773,2679.5,2678.9,3.2078]
[1739773181840,0.555,2679.5,2679.0,1.86628]
[1739773182038,0.555,2679.5,2679.4,0.7464]
[1739773182936,0.5796,2679.6,2679.5,0.74637]
[1739773183951,1.32596,2679.6,2679.3,1.32161]
[1739773185251,1.32596,2679.6,2679.4,0.74639]
[1739773185639,0.5796,2679.6,2679.4,0.74638]
[1739773185836,0.5796,2679.6,2679.3,0.74641]
[1739773186056,0.74638,2679.5,2678.9,3.2078]
[1739773186246,3.27895773,2679.5,2678.9,3.2078]
[1739773186446,6.48675773,2679.5,2678.9,3.2078]
[1739773186646,0.7465,2679.1,2678.9,3.2078]
[1739773186943,2.484,2679.4,2678.9,3.2078]
[1739773186944,1.89961,2679.0,2678.9,3.2078]
[1739773187144,1.1531,2679.0,2678.5,0.00559775]
[1739773187447,0.74656,2678.8,2678.6,7.7391594]
[1739773187746,0.74662,2678.6,2678.5,0.00559775]
[1739773189753,6.48675773,2678.9,2678.5,0.00559775]
[1739773189945,0.74662,2678.6,2678.5,0.00559775]
[1739773190341,4.02557773,2678.6,2678.5,0.00559775]
[1739773190653,9.71737773,2678.6,2678.5,0.00559775]
[1739773191654,8.97075773,2678.6,2678.5,0.00559775]
[1739773191850,9.71737773,2678.6,2678.5,0.00559775]
[1739773196556,5.6928,2678.6,2678.5,0.00559775]
[1739773196752,3.2078,2678.6,2678.5,0.00559775]
[1739773197859,3.95442,2678.6,2678.5,0.00559775]
[1739773198056,7.23337773,2678.6,2678.5,0.00559775]
[1739773203360,12.48675773,2678.6,2677.6,0.5663]
[1739773203566,0.74683,2677.9,2677.6,0.5663]
[1739773203759,2.485,2677.9,2677.6,0.5663]
[1739773203959,0.74691,2677.6,2677.3,3.7597]
[1739773204261,0.74691,2677.6,2677.3,0.5519]
[1739773205260,3.21339775,2677.7,2677.3,0.5519]
[1739773205462,0.74694,2677.5,2677.2,0.00559775]
[1739773205764,2.485,2677.5,2677.2,0.00559775]
[1739773206160,2.485,2677.5,2677.4,0.74695]
[1739773206562,3.21339775,2677.7,2677.5,0.74691]
[1739773206862,3.21339775,2677.7,2677.6,0.5771]
[1739773207064,0.00559775,2677.7,2677.6,0.5771]
[1739773207868,0.00559775,2677.7,2677.6,1.1248]
[1739773208262,0.00559775,2677.7,2677.6,1.8717]
[1739773208968,0.00559775,2677.7,2677.6,9.77824164]
[1739773209467,0.00559775,2677.7,2677.6,12.98604164]
[1739773209968,3.2078,2678.5,2677.6,18.98604164]
[1739773210171,2.485,2678.4,2677.9,3.2078]
[1739773210364,2.485,2678.4,2678.2,0.74671]
[1739773210767,3.95445,2678.5,2678.2,0.74671]
[1739773211672,3.2078,2678.5,2678.1,0.564]
[1739773211864,0.74673,2678.2,2678.1,0.564]
[1739773212064,3.2078,2678.5,2678.1,0.564]
[1739773212363,0.74672,2678.3,2678.1,0.564]
[1739773212764,0.74667,2678.4,2678.1,0.564]
[1739773212961,3.2078,2678.5,2677.9,3.2078]
[1739773213166,0.74675,2678.2,2677.9,3.2078]
[1739773213367,0.554,2678.3,2677.9,3.2078]
[1739773213568,0.554,2678.3,2677.9,3.9546]
[1739773213767,1.30071,2678.3,2677.9,3.9546]
[1739773214171,1.30071,2678.3,2677.9,3.2078]
[1739773214569,3.2078,2678.2,2677.8,0.5456]
[1739773214777,5.6928,2678.2,2677.6,0.5477]
[1739773214974,0.74679,2678.0,2677.6,1.0933]
[1739773215270,0.74679,2678.0,2677.6,1.84017]
[1739773215467,41.9006,2678.1,2677.7,0.74687]
[1739773215668,41.9006,2678.1,2677.7,0.74685]
[1739773215876,5.6928,2678.2,2677.9,0.74679]
[1739773216080,3.2078,2678.2,2678.0,0.74677]
[1739773216274,2.485,2678.3,2678.1,0.74674]
[1739773216770,2.485,2678.3,2678.0,0.74677]
[1739773216966,0.74673,2678.2,2678.1,0.5621]
[1739773217173,0.74682,2677.9,2677.6,1.1168]
[1739773217369,0.74682,2677.9,2677.6,1.6789]
[1739773217571,0.74682,2677.9,2677.6,1.1098]
[1739773218169,3.27895773,2678.0,2677.6,1.1098]
[1739773218367,0.74687,2677.8,2677.6,1.1098]
[1739773218671,3.27895773,2677.7,2677.2,0.00559775]
[1739773218870,3.2078,2677.5,2677.2,0.00559775]
[1739773219073,3.27895773,2677.4,2677.2,0.00559775]
[1739773219383,0.74698,2677.3,2677.2,0.00559775]
[1739773219876,3.27895773,2677.4,2676.6,0.5442]
[1739773220177,3.95494,2676.8,2676.3,0.5842]
[1739773220379,3.27895773,2676.7,2676.2,0.5442]
[1739773220677,3.95501,2676.5,2675.7,0.74741]
[1739773220878,2.485,2676.4,2675.7,1.29161]
[1739773221072,5.76955548,2676.4,2675.8,0.00559775]
[1739773221473,2.49059775,2676.4,2675.8,0.00559775]
[1739773221876,2.49059775,2676.4,2675.9,0.74737]
[1739773222077,3.27895773,2676.1,2675.8,0.00559775]
[1739773222267,4.02627773,2676.1,2675.8,0.00559775]
[1739773222472,3.27895773,2676.1,2675.8,0.00559775]
[1739773222777,2.485,2676.0,2675.8,0.00559775]
[1739773225273,3.2078,2676.2,2675.8,0.00559775]
[1739773225475,2.485,2676.1,2675.8,0.75297775]
[1739773225780,2.485,2676.1,2675.9,0.74737]
[1739773225977,3.28455548,2676.4,2675.8,0.00559775]
[1739773226176,3.2078,2675.9,2675.0,3.2078]
[1739773226482,3.2078,2675.6,2675.1,7.86145425]
[1739773226782,3.2078,2675.6,2675.4,0.7475]
[1739773226976,3.2078,2675.6,2675.5,0.74748]
[1739773227179,3.2078,2676.0,2675.7,0.74741]
[1739773227375,3.2078,2676.0,2675.6,0.74744]
[1739773228075,3.2078,2676.0,2675.5,0.74747]
[1739773228281,3.2078,2676.0,2675.4,7.95201785]
[1739773228482,3.2078,2676.0,2675.6,7.72855491]
[1739773228676,0.5935,2676.1,2675.4,8.27475491]
[1739773228984,0.5935,2676.1,2675.6,3.2078]
[1739773229185,0.5935,2676.1,2675.6,0.74745]
[1739773229377,0.5935,2676.1,2675.6,3.2078]
[1739773229773,0.5935,2676.1,2675.9,0.74737]
[1739773230180,6.48675773,2676.3,2675.9,0.74735]
[1739773230381,3.2078,2676.3,2675.6,3.2078]
[1739773230588,2.5,2676.3,2675.6,3.2078]
[1739773230889,5.77895773,2676.3,2675.7,7.91185583]
[1739773231097,3.27895773,2676.0,2675.4,3.0462]
[1739773231384,0.74738,2675.9,2675.5,7.80845633]
[1739773231588,1.34098,2675.9,2675.5,7.80845633]
[1739773231783,0.5936,2675.9,2675.4,0.5462]
[1739773231988,1.34098,2675.9,2675.4,1.2937]
[1739773232283,1.34098,2675.9,2675.3,3.21339775]
[1739773232284,0.74741,2675.8,2675.3,3.21339775]
[1739773232481,3.0946,2675.9,2675.3,3.21339775]
[1739773232675,3.0946,2675.9,2675.6,0.74744]
[1739773234393,3.0946,2675.9,2675.3,3.21339775]
[1739773234687,3.84198,2675.9,2675.4,0.7475]
[1739773234887,3.84198,2675.9,2675.3,3.21339775]
[1739773234888,0.7474,2675.8,2675.3,3.96090775]
[1739773235085,4.02640773,2675.7,2675.3,3.21339775]
[1739773235287,3.27895773,2675.4,2675.3,0.00559775]
[1739773235483,5.78195773,2675.4,2675.3,0.00559775]
[1739773235688,43.878,2675.5,2675.4,0.74751]
[1739773235883,3.27895773,2675.7,2675.3,0.00559775]
[1739773236079,4.3764,2675.9,2675.6,0.74746]
[1739773236287,3.8014,2675.9,2675.4,7.89232986]
[1739773237387,3.8014,2675.9,2675.6,0.00280159]
[1739773237985,3.8014,2675.9,2675.6,0.75024159]
[1739773238487,3.8014,2675.9,2675.6,0.00280159]
[1739773238688,4.41575773,2676.3,2675.6,0.00280159]
[1739773238887,0.5923,2676.2,2676.1,0.7473]
[1739773239083,2.51359775,2676.4,2675.9,3.2078]
[1739773239286,0.00559775,2676.4,2676.3,0.74726]
[1739773239982,0.00559775,2676.4,2676.3,8.54590831]
[1739773240485,3.2078,2676.8,2676.3,17.07760604]
[1739773240690,3.2078,2676.8,2676.7,0.74715]
[1739773241098,3.2078,2676.8,2676.3,13.58860604]
[1739773241391,3.2078,2676.8,2676.5,0.7472]
[1739773241692,3.2078,2676.8,2676.6,0.74717]
[1739773241990,3.2078,2676.8,2676.6,8.05533901]
[1739773242488,3.2078,2676.8,2676.3,2.511]
[1739773242690,3.2078,2676.8,2676.7,0.74715]
[1739773242890,0.74718,2676.6,2676.5,3.03983995]
[1739773243097,15.02975773,2676.8,2675.3,0.55879775]
[1739773243389,3.27895773,2675.9,2675.3,0.55879775]
[1739773243598,0.74743,2675.7,2675.3,0.55879775]
[1739773244000,0.74743,2675.7,2675.3,0.00559775]
[1739773244801,4.58441129,2675.7,2675.3,0.00559775]
[1739773246297,5.14901129,2675.7,2675.3,0.00559775]
[1739773247098,4.40158129,2675.7,2675.3,0.00559775]
[1739773247407,5.14901129,2675.7,2675.3,0.00559775]
[1739773248801,4.40158129,2675.7,2675.3,0.00559775]
[1739773249304,5.14901129,2675.7,2675.3,0.00559775]
[1739773250700,4.40158129,2675.7,2675.3,0.00559775]
[1739773250901,7.04478129,2675.4,2674.4,4.3405]
[1739773251105,3.83698129,2675.1,2674.8,0.74767]
[1739773251808,3.83698129,2675.1,2674.5,7.6551883]
[1739773251997,3.83698129,2675.1,2674.9,0.74765]
[1739773252604,3.83698129,2675.1,2675.0,0.74762]
[1739773252809,0.00559775,2675.2,2675.1,0.7476]
[1739773254713,0.00559775,2675.2,2675.1,1.3269]
[1739773258210,2.539,2675.9,2675.8,0.74739]
[1739773258414,4.38028129,2676.0,2675.9,0.74737]
[1739773258614,2.538,2676.1,2676.0,0.74734]
[1739773259206,2.539,2676.4,2676.3,0.74726]
[1739773259714,2.539,2676.4,2676.2,0.74726]
[1739773259917,2.539,2676.4,2676.3,0.74726]
[1739773260408,2.539,2676.4,2676.1,0.00559775]
[1739773260608,2.539,2676.4,2676.2,0.74727]
[1739773260916,2.539,2676.4,2676.1,0.00559775]
[1739773261127,2.539,2676.4,2676.3,0.74726]
[1739773261815,44.64257904,2676.6,2676.1,0.00559775]
[1739773262015,44.64257904,2676.6,2676.5,0.7472]
[1739773262215,0.00559775,2676.6,2676.5,0.7472]
[1739773264118,0.00559775,2676.6,2676.4,0.5628]
[1739773264616,0.00559775,2676.6,2676.5,0.7472]
[1739773264810,0.00559775,2676.6,2676.5,1.2946]
[1739773265113,0.00559775,2676.6,2676.5,1.8372]
[1739773267011,0.00559775,2676.6,2676.5,1.09]
[1739773267210,0.00559775,2676.6,2676.5,1.2946]
[1739773269414,0.00559775,2676.6,2676.5,0.5474]
[1739773270017,0.00559775,2676.6,2676.5,1.2946]
[1739773271717,0.00559775,2676.6,2676.5,0.5474]
[1739773272120,0.00559775,2676.6,2676.5,1.2946]
[1739773273417,0.00559775,2676.6,2676.5,0.5474]
[1739773274219,0.00559775,2676.6,2676.5,1.2946]
[1739773274421,0.00559775,2676.6,2676.5,0.5474]
[1739773274816,0.00559775,2676.6,2676.5,1.2946]
[1739773277927,3.2078,2677.3,2676.5,9.22995057]
[1739773278123,0.5591,2677.3,2676.8,3.2078]
[1739773278319,2.531,2677.3,2677.2,0.74701]
[1739773278526,3.29318254,2677.5,2677.3,0.74697]
[1739773278730,3.29318254,2677.5,2677.4,0.74695]
[1739773279025,6.2999,2677.6,2677.4,0.74695]
[1739773280018,3.7669,2677.6,2677.4,0.74695]
[1739773280228,3.7669,2677.6,2677.4,0.74693]
[1739773280729,3.7669,2677.6,2677.0,1.1135]
[1739773280730,3.2078,2677.6,2677.5,0.74693]
[1739773280927,3.2078,2677.6,2677.0,1.1135]
[1739773281225,3.2078,2677.6,2677.5,0.74693]
[1739773281731,0.00559775,2677.7,2677.6,0.7469]
[1739773284825,0.00559775,2677.7,2677.6,1.301]
[1739773285719,0.00559775,2677.7,2677.6,4.5088]
[1739773285920,0.00559775,2677.7,2677.6,12.54522143]
[1739773286124,5.7348,2678.3,2677.6,11.79832143]
[1739773286321,0.74678,2678.1,2677.7,0.74687]
[1739773286728,0.7468,2678.0,2677.6,11.79832143]
[1739773287030,0.7468,2678.0,2677.6,12.54522143]
[1739773287233,0.7468,2678.0,2677.7,0.74687]
[1739773287429,4.04556029,2678.1,2677.7,0.74687]
[1739773287630,0.7468,2678.0,2677.6,12.54521143]
[1739773288129,3.29878029,2678.1,2677.6,11.79832143]
[1739773288434,4.04554029,2678.1,2677.6,11.79832143]
[1739773288632,4.04554029,2678.1,2677.7,0.74686]
[1739773289135,3.29878029,2678.1,2677.8,0.74684]
[1739773289435,3.29878029,2678.1,2677.7,0.74685]
[1739773289829,4.04554029,2678.1,2677.7,0.74685]
[1739773290031,4.04554029,2678.1,2677.6,8.59052143]
[1739773290238,3.29878029,2678.1,2677.8,0.74683]
[1739773290735,0.74679,2678.0,2677.6,9.33740143]
[1739773291038,3.29878029,2678.1,2677.6,8.59052143]
[1739773291338,4.04556029,2678.1,2677.7,0.74687]
[1739773291631,4.04556029,2678.1,2677.6,8.59052143]
[1739773291632,3.9546,2678.0,2677.6,8.59052143]
[1739773291836,3.9546,2678.0,2677.6,9.33740143]
[1739773292238,3.2078,2678.0,2677.6,8.59052143]
[1739773292728,3.2078,2678.0,2677.8,0.74683]
[1739773293127,3.2078,2678.0,2677.9,0.74681]
[1739773293333,3.2078,2678.0,2677.6,8.59052143]
[1739773293526,3.95459,2678.0,2677.7,0.74685]
[1739773293837,3.2078,2678.0,2677.7,0.74685]
[1739773294036,3.2078,2678.0,2677.8,0.74684]
[1739773294239,3.2078,2678.0,2677.6,8.59052143]
[1739773294538,3.95461,2678.0,2677.6,8.59052143]
[1739773294838,3.95461,2678.0,2677.7,0.74686]
[1739773295239,3.2078,2678.0,2677.8,0.74684]
[1739773295838,3.2078,2678.0,2677.6,8.59052143]
[1739773296037,3.2078,2678.0,2677.7,0.74685]
[1739773296038,3.95459,2678.0,2677.7,0.74685]
[1739773296238,3.95459,2678.0,2677.6,8.59052143]
[1739773296439,3.2078,2678.0,2677.6,8.59052143]
[1739773296634,3.95461,2678.0,2677.6,8.59052143]
[1739773296840,3.2078,2678.0,2677.8,0.74684]
[1739773297041,3.2078,2678.0,2677.6,8.59052143]
[1739773297442,3.2078,2678.0,2677.6,9.33741143]
[1739773297743,3.95459,2678.0,2677.6,8.59052143]
[1739773297948,3.2078,2678.0,2677.8,0.74683]
[1739773298239,3.2078,2678.0,2677.6,8.59052143]
[1739773298445,3.2078,2678.0,2677.9,0.74681]
[1739773298646,3.2078,2678.0,2677.6,8.59052143]
[1739773298647,3.95459,2678.0,2677.7,0.74686]
[1739773299040,3.2078,2678.0,2677.8,0.74682]
[1739773300240,3.95459,2678.0,2677.8,0.74683]
[1739773300846,3.2078,2678.0,2677.8,0.74683]
[1739773302247,3.2078,2678.0,2677.6,8.59052143]
[1739773302447,3.95459,2678.0,2677.6,8.59052143]
[1739773302646,3.2078,2678.0,2677.8,0.74683]
[1739773302846,3.2078,2678.0,2677.8,0.74682]
[1739773303047,3.2078,2678.0,2677.6,8.59052143]
[1739773303649,3.2078,2678.0,2677.8,0.74684]
[1739773304345,3.95459,2678.0,2677.8,0.74684]
[1739773304936,3.2078,2678.0,2677.6,0.5541]
[1739773305139,4.04004254,2677.8,2677.6,0.5541]
[1739773306046,0.74687,2677.7,2677.6,0.5541]
[1739773306246,0.5866,2677.7,2677.6,0.5541]
[1739773306645,1.33347,2677.7,2677.6,0.5541]
[1739773306846,1.33347,2677.7,2677.5,0.59009775]
[1739773307047,0.7469,2677.6,2677.5,0.00559775]
[1739773307241,0.7469,2677.6,2676.3,6.20818254]
[1739773307242,6.8534,2677.6,2676.4,23.9168]
[1739773307544,3.2078,2677.0,2676.6,0.74717]
[1739773307747,5.7068,2677.0,2676.6,0.74718]
[1739773307947,6.2737,2677.0,2676.6,0.74718]
[1739773308144,7.02077,2677.0,2676.5,1.9219]
[1739773308350,7.02077,2677.0,2676.5,1.92749775]
[1739773308544,7.02077,2677.0,2676.6,0.74716]
[1739773308750,7.02077,2677.0,2676.5,1.18029775]
[1739773308942,6.2737,2677.0,2676.5,1.18029775]
[1739773309144,0.7471,2676.9,2676.5,1.18029775]
[1739773309449,3.2078,2676.7,2676.5,1.18029775]
[1739773311653,3.2078,2676.7,2676.5,0.00559775]
[1739773313656,3.95495,2676.7,2676.5,0.00559775]
[1739773313846,0.74718,2676.6,2676.5,0.00559775]
[1739773314050,3.24018,2676.6,2676.5,0.00559775]
[1739773315254,3.24018,2676.6,2675.9,0.74735]
[1739773315255,0.74726,2676.4,2675.9,0.74735]
[1739773315456,4.04044254,2676.4,2675.9,1.34065]
[1739773315652,3.29318254,2676.5,2675.9,0.5933]
[1739773315847,2.495,2676.5,2676.4,0.74723]
[1739773316153,3.2078,2676.7,2676.5,0.74719]
[1739773316348,3.21339775,2676.7,2676.6,0.74718]
[1739773317652,3.21339775,2676.7,2676.5,0.74718]
[1739773318547,3.21339775,2676.7,2676.6,0.74718]
[1739773319253,3.21339775,2676.7,2676.4,0.5458]
[1739773319554,3.21339775,2676.7,2676.5,0.7472]
[1739773319757,3.21339775,2676.7,2676.4,0.5458]
[1739773320254,5.79318254,2676.6,2676.2,0.00559775]
[1739773320557,6.54037254,2676.6,2676.2,0.75287775]
[1739773320951,0.74724,2676.4,2676.2,0.00559775]
[1739773321158,3.88788254,2676.3,2676.2,0.00559775]
[1739773321350,7.84294254,2676.3,2676.2,0.00559775]
[1739773321546,7.09568254,2676.3,2676.2,0.00559775]
[1739773321949,7.84294254,2676.3,2676.2,0.00559775]
[1739773322165,7.09568254,2676.3,2676.2,0.00559775]
[1739773322854,3.8025,2676.3,2676.2,0.00559775]
[1739773323250,3.2078,2676.3,2676.2,0.00559775]
[1739773323453,9.55688254,2676.6,2676.2,0.00559775]
[1739773323652,6.2637,2676.6,2676.4,0.74722]
[1739773324262,0.00559775,2676.7,2676.3,1.7024]
[1739773324466,0.00559775,2676.7,2676.6,0.74718]
[1739773325459,0.00559775,2676.7,2676.3,1.7024]
[1739773325661,0.00559775,2676.7,2676.5,0.74719]
[1739773326156,0.00559775,2676.7,2676.3,1.7024]
[1739773326352,0.00559775,2676.7,2676.5,0.74719]
[1739773327364,0.00559775,2676.7,2676.6,0.74718]
[1739773327661,0.00559775,2676.7,2676.3,1.7024]
[1739773327861,0.00559775,2676.7,2676.6,0.74718]
[1739773328255,0.00559775,2676.7,2676.6,8.39640694]
[1739773328762,0.00559775,2676.7,2676.6,7.64922694]
[1739773328960,0.00559775,2676.7,2676.6,8.39640694]
[1739773329161,0.00559775,2676.7,2676.6,0.74718]
[1739773329353,0.00559775,2676.7,2676.6,8.72283933]
[1739773330556,5.7048,2677.2,2677.0,0.74704]
[1739773330763,5.7048,2677.2,2677.1,1.1139]
[1739773330764,6.45181,2677.2,2677.1,1.1139]
[1739773330958,3.95481,2677.2,2677.1,1.1139]
[1739773331462,3.2078,2677.2,2677.1,1.1139]
[1739773331863,3.2078,2677.2,2677.1,1.86094]
[1739773332665,3.2078,2677.2,2677.1,1.1139]
[1739773333863,3.2078,2677.2,2677.1,1.86094]
[1739773334263,2.50259775,2677.4,2677.1,1.1139]
[1739773334661,3.24956775,2677.4,2677.1,1.1139]
[1739773335065,2.50259775,2677.4,2677.1,1.1139]
[1739773335268,6.50098254,2677.2,2676.8,0.5511]
[1739773335457,6.50098254,2676.9,2676.3,0.5423]
[1739773335656,0.74722,2676.5,2676.2,0.00559775]
[1739773335871,3.0526,2676.4,2676.2,0.00559775]
[1739773336172,43.8526,2676.4,2676.2,0.00559775]
[1739773336365,3.0526,2676.4,2676.2,0.00559775]
[1739773336559,0.74726,2676.3,2676.2,0.00559775]
[1739773336761,3.0526,2676.4,2676.2,0.00559775]
[1739773337166,3.0526,2676.4,2676.3,0.74726]
[1739773337672,2.501,2676.4,2676.3,0.74726]
[1739773337860,2.501,2676.4,2676.3,1.86036]
[1739773338062,2.501,2676.4,2676.3,1.1131]
[1739773339473,0.74726,2676.3,2676.2,0.00559775]
[1739773339657,7.79694254,2676.3,2676.2,0.00559775]
[1739773340970,7.04968254,2676.3,2676.2,0.00559775]
[1739773342572,3.7565,2676.3,2676.2,0.00559775]
[1739773342868,5.7058,2676.3,2676.2,0.75288775]
[1739773345168,3.2078,2676.3,2676.2,0.75288775]
[1739773345967,2.494,2676.6,2676.4,0.74722]
[1739773346465,2.494,2676.6,2676.5,0.7472]
[1739773346765,2.494,2676.6,2676.4,0.74721]
[1739773347361,3.0751,2676.7,2676.3,1.0999]
[1739773347667,2.492,2676.7,2676.6,0.74718]
[1739773348372,2.492,2676.7,2676.4,8.34486397]
[1739773348671,2.492,2676.7,2676.5,0.74719]
[1739773349870,3.2078,2676.9,2676.6,0.74715]
[1739773350070,5.6968,2676.9,2676.6,0.74716]
[1739773350267,2.488,2676.9,2676.7,0.74714]
[1739773350768,2.488,2676.9,2676.4,11.55266397]
[1739773350957,3.23511,2676.9,2676.6,0.74715]
[1739773351161,2.488,2676.9,2676.6,0.74715]
[1739773351564,3.2351,2676.9,2676.6,0.74715]
[1739773352067,3.2351,2676.9,2676.4,11.55266397]
[1739773352271,2.488,2676.9,2676.4,11.55266397]
[1739773352664,2.488,2676.9,2676.6,0.74716]
[1739773352971,2.488,2676.9,2676.7,0.74713]
[1739773353170,2.488,2676.9,2676.4,11.55266397]
[1739773353361,2.488,2676.9,2676.7,0.74712]
[1739773354368,2.488,2676.9,2676.4,11.55266397]
[1739773355269,2.488,2676.9,2676.7,0.74714]
[1739773356269,3.2351,2676.9,2676.6,0.74717]
[1739773356975,2.488,2676.9,2676.6,0.74717]
[1739773357276,2.488,2676.9,2676.7,0.74715]
[1739773357979,2.488,2676.9,2676.8,0.74712]
[1739773358779,2.488,2676.9,2676.4,11.55266397]
[1739773358975,2.488,2676.9,2676.4,13.42071397]
[1739773359181,2.488,2676.9,2676.8,0.74712]
[1739773359382,2.488,2676.9,2676.7,0.74714]
[1739773359680,0.74714,2676.8,2676.4,12.29988397]
[1739773359881,2.488,2676.9,2676.4,11.55266397]
[1739773360084,3.2351,2676.9,2676.6,0.74716]
[1739773360578,2.488,2676.9,2676.4,11.55266397]
[1739773360880,2.488,2676.9,2676.7,0.74713]
[1739773361375,2.488,2676.9,2676.7,0.74715]
[1739773362280,0.74713,2676.8,2676.5,0.74719]
[1739773362478,0.74712,2676.8,2676.4,3.8026]
[1739773362673,3.2351,2676.9,2676.6,0.74717]
[1739773363181,2.488,2676.9,2676.4,3.8026]
[1739773363384,2.488,2676.9,2676.7,0.74713]
[1739773364188,3.2351,2676.9,2676.4,3.8026]